bitfinex/quotes_BTCUSD_20250825
["timestamp","ask_amount","ask_price","bid_price","bid_amount"]
[1756157435822,4.80873765,109820.0,109810.0,0.18520874]
[1756157436039,4.80561765,109820.0,109810.0,0.36942151]
[1756157436259,4.62350146,109820.0,109810.0,0.36742151]
[1756157436471,4.80561765,109820.0,109810.0,0.36742151]
[1756157436712,0.21913865,109820.0,109810.0,0.36742151]
[1756157436931,0.24653165,109820.0,109810.0,0.36742151]
[1756157437146,0.24653165,109820.0,109810.0,0.36942151]
[1756157437594,4.8593205,109820.0,109810.0,0.16775972]
[1756157437809,0.24437165,109820.0,109810.0,0.35197249]
[1756157438033,0.24653165,109820.0,109810.0,0.35297249]
[1756157438461,0.06441546,109820.0,109810.0,0.35297249]
[1756157438702,0.74437165,109820.0,109810.0,0.35297249]
[1756157438917,4.83085065,109820.0,109810.0,0.35297249]
[1756157439123,0.24653165,109820.0,109810.0,0.35297249]
[1756157440028,0.00216,109820.0,109810.0,0.35297249]
[1756157440240,0.71056288,109820.0,109810.0,0.35297249]
[1756157440449,4.7914865,109820.0,109810.0,0.35297249]
[1756157440687,0.18427619,109820.0,109810.0,0.35297249]
[1756157441775,0.18427619,109820.0,109810.0,0.35089249]
[1756157442201,4.586479,109820.0,109810.0,0.35297249]
[1756157442419,4.586479,109820.0,109810.0,0.35613249]
[1756157442629,4.588639,109820.0,109810.0,0.35297249]
[1756157443593,4.60945717,109820.0,109810.0,0.35297249]
[1756157443800,4.79157336,109820.0,109810.0,0.35297249]
[1756157444203,4.60945717,109820.0,109810.0,0.35297249]
[1756157444412,4.79157336,109820.0,109810.0,0.35297249]
[1756157445126,4.83253006,109820.0,109810.0,0.16867972]
[1756157445330,4.83253006,109820.0,109810.0,0.00347972]
[1756157445529,4.83253006,109820.0,109810.0,0.16867972]
[1756157445653,4.85992506,109820.0,109810.0,0.16867972]
[1756157445858,4.8767569,109820.0,109810.0,0.16867972]
[1756157446248,4.8389202,109820.0,109810.0,0.00347972]
[1756157446470,4.8389202,109820.0,109810.0,0.16667972]
[1756157447120,4.8389202,109820.0,109810.0,0.16567972]
[1756157447121,4.85317633,109820.0,109810.0,0.16567972]
[1756157448251,4.85417633,109820.0,109810.0,0.16567972]
[1756157448471,4.85517633,109820.0,109810.0,0.16567972]
[1756157448683,4.94204598,109820.0,109810.0,0.16567972]
[1756157449105,4.94204598,109820.0,109810.0,0.16563972]
[1756157449538,4.9420549,109820.0,109810.0,0.00047972]
[1756157449752,4.85518525,109820.0,109810.0,0.00047972]
[1756157453303,5.03980141,109820.0,109810.0,0.00047972]
[1756157454180,5.04613661,109820.0,109810.0,0.00047972]
[1756157455332,5.03188048,109820.0,109810.0,0.00047972]
[1756157456487,5.03188048,109820.0,109810.0,1e-08]
[1756157456705,5.14315029,109820.0,109810.0,1e-08]
[1756157456923,5.29315029,109820.0,109810.0,1e-08]
[1756157457569,5.29211029,109820.0,109810.0,1e-08]
[1756157457810,5.14111029,109820.0,109810.0,1e-08]
[1756157458023,5.29911029,109820.0,109810.0,1e-08]
[1756157458455,5.31036935,109820.0,109810.0,1e-08]
[1756157459108,5.31436935,109820.0,109810.0,1e-08]
[1756157459324,5.15936935,109820.0,109810.0,1e-08]
[1756157459532,5.15932935,109820.0,109810.0,1e-08]
[1756157459757,5.30937444,109820.0,109810.0,1e-08]
[1756157459972,5.14429444,109820.0,109810.0,1e-08]
[1756157460179,5.2889738,109820.0,109810.0,1e-08]
[1756157460411,5.1238938,109820.0,109810.0,1e-08]
[1756157460629,5.2889738,109820.0,109810.0,1e-08]
[1756157461279,5.1238938,109820.0,109810.0,1e-08]
[1756157461489,5.2889738,109820.0,109810.0,1e-08]
[1756157462146,5.1389738,109820.0,109810.0,1e-08]
[1756157462384,5.20378846,109820.0,109810.0,1e-08]
[1756157462592,5.35378846,109820.0,109810.0,1e-08]
[1756157463284,5.20378846,109820.0,109810.0,1e-08]
[1756157463514,5.3395294,109820.0,109810.0,1e-08]
[1756157463735,5.3395294,109820.0,109770.0,0.15733175]
[1756157463736,0.18218254,109780.0,109770.0,0.15733175]
[1756157463946,4.84144209,109780.0,109770.0,0.08930175]
[1756157464158,4.84981549,109780.0,109770.0,0.08930175]
[1756157464386,5.01485549,109780.0,109770.0,0.08930175]
[1756157464604,5.04226549,109780.0,109770.0,0.08930175]
[1756157465044,5.04549549,109780.0,109770.0,0.0873956]
[1756157465268,5.04549549,109780.0,109770.0,0.01586285]
[1756157465909,5.04549549,109780.0,109770.0,0.01686285]
[1756157466126,5.04022549,109780.0,109770.0,0.01891285]
[1756157466344,4.87722549,109780.0,109770.0,0.01874311]
[1756157466554,5.00378914,109780.0,109770.0,0.02194311]
[1756157467025,4.99745574,109780.0,109770.0,0.02194311]
[1756157467235,4.99745574,109780.0,109770.0,0.01774311]
[1756157467236,5.01375746,109780.0,109770.0,0.01774311]
[1756157467461,4.85071746,109780.0,109770.0,0.01674311]
[1756157467669,5.10262711,109780.0,109770.0,0.01674311]
[1756157467877,5.10362711,109780.0,109770.0,0.01674311]
[1756157468092,4.85171746,109780.0,109770.0,0.01674311]
[1756157468321,5.01371746,109780.0,109770.0,0.01994311]
[1756157468532,4.84865338,109780.0,109770.0,0.01994311]
[1756157468743,4.84965338,109780.0,109770.0,0.01994311]
[1756157470047,4.83019722,109780.0,109770.0,0.20214225]
[1756157470260,4.83223722,109780.0,109770.0,0.01994311]
[1756157470482,4.8794145,109780.0,109770.0,0.01674311]
[1756157470764,4.8826445,109780.0,109770.0,0.01469311]
[1756157470975,5.0444145,109780.0,109770.0,0.01469311]
[1756157471200,5.0466445,109780.0,109770.0,0.01469311]
[1756157471408,4.84862414,109780.0,109770.0,0.02094311]
[1756157471843,4.84662414,109780.0,109770.0,0.02094311]
[1756157472043,4.84662414,109780.0,109770.0,0.02294311]
[1756157472480,4.8129355,109780.0,109770.0,0.01994311]
[1756157472692,4.8129355,109780.0,109770.0,0.02094311]
[1756157472908,4.92450665,109780.0,109770.0,0.01569311]
[1756157473121,5.08950665,109780.0,109770.0,0.01569311]
[1756157473327,4.92127665,109780.0,109770.0,0.01774311]
[1756157473541,5.08627665,109780.0,109770.0,0.01674311]
[1756157473961,5.08950665,109780.0,109770.0,0.01769311]
[1756157474361,4.92450665,109780.0,109770.0,0.01769311]
[1756157474576,4.997367,109780.0,109770.0,0.02294311]
[1756157474789,4.998367,109780.0,109770.0,0.02294311]
[1756157475056,5.00037647,109780.0,109770.0,0.01674311]
[1756157475452,5.08624612,109780.0,109770.0,0.01774311]
[1756157475710,5.08947612,109780.0,109770.0,0.01569311]
[1756157475906,5.10374669,109780.0,109770.0,0.01569311]
[1756157476115,5.11007558,109780.0,109770.0,0.01569311]
[1756157476341,5.13437675,109780.0,109770.0,0.01569311]
[1756157477425,5.13437675,109780.0,109770.0,1e-08]
[1756157477863,5.13537675,109780.0,109770.0,1e-08]
[1756157478078,0.18221574,109760.0,109750.0,0.004956]
[1756157478338,4.97127724,109760.0,109750.0,0.00504334]
[1756157478548,4.99652536,109760.0,109750.0,1e-08]
[1756157478766,5.02405689,109760.0,109750.0,1e-08]
[1756157478984,5.03832196,109760.0,109750.0,1e-08]
[1756157479442,5.07904839,109760.0,109750.0,1e-08]
[1756157479644,4.94352196,109760.0,109750.0,1e-08]
[1756157479859,5.11044196,109760.0,109750.0,1e-08]
[1756157480074,4.94352196,109760.0,109750.0,1e-08]
[1756157480515,5.11144196,109760.0,109750.0,1e-08]
[1756157480718,5.08714043,109760.0,109750.0,1e-08]
[1756157481167,4.96756423,109760.0,109750.0,0.00205001]
[1756157481373,5.00316999,109760.0,109750.0,1e-08]
[1756157481587,5.16808999,109760.0,109750.0,1e-08]
[1756157482005,5.28771423,109760.0,109750.0,1e-08]
[1756157482239,5.24014043,109760.0,109750.0,1e-08]
[1756157482451,5.11875356,109760.0,109750.0,1e-08]
[1756157482686,5.11840849,109760.0,109750.0,1e-08]
[1756157482908,4.95548849,109760.0,109750.0,1e-08]
[1756157483118,5.12040849,109760.0,109750.0,1e-08]
[1756157483330,5.12240849,109760.0,109750.0,1e-08]
[1756157483766,5.19132438,109760.0,109750.0,1e-08]
[1756157484196,5.38784529,109760.0,109750.0,1e-08]
[1756157484402,0.18226556,109730.0,109720.0,1e-08]
[1756157484624,0.18229878,109710.0,109700.0,0.0002]
[1756157484837,4.9525769,109710.0,109700.0,0.00225]
[1756157485041,4.83453087,109710.0,109700.0,0.00034368]
[1756157485264,4.99737087,109710.0,109700.0,0.00233368]
[1756157485472,4.99940087,109710.0,109700.0,0.00233368]
[1756157485678,5.08627052,109710.0,109700.0,0.00034368]
[1756157485944,5.10360276,109710.0,109700.0,0.00034368]
[1756157486146,5.10054276,109710.0,109700.0,0.00034368]
[1756157486367,5.13977474,109710.0,109700.0,0.00034368]
[1756157486806,5.13671474,109710.0,109700.0,0.00134368]
[1756157487008,5.13977474,109710.0,109700.0,0.00134368]
[1756157487221,5.13977474,109710.0,109700.0,0.00234368]
[1756157487896,5.13975978,109710.0,109700.0,0.00234368]
[1756157488117,4.97487978,109710.0,109700.0,0.00134368]
[1756157488325,5.13971421,109710.0,109700.0,0.00134368]
[1756157488547,5.13971421,109710.0,109700.0,1e-08]
[1756157488767,0.18234865,109680.0,109670.0,0.00026353]
[1756157488984,4.9701772,109680.0,109670.0,0.00225353]
[1756157489424,4.9701772,109680.0,109670.0,0.00538353]
[1756157489676,4.9881094,109680.0,109670.0,0.00538353]
[1756157490291,4.9881094,109680.0,109670.0,0.00225353]
[1756157490723,4.9901394,109680.0,109670.0,0.00026353]
[1756157490948,4.9931994,109680.0,109670.0,0.00026353]
[1756157491156,4.8283194,109680.0,109670.0,0.00326353]
[1756157491363,4.9901394,109680.0,109670.0,0.00525353]
[1756157491788,4.8252594,109680.0,109670.0,0.00525353]
[1756157492006,4.9901394,109680.0,109670.0,0.00726353]
[1756157492242,0.18236527,109670.0,109650.0,0.00104]
[1756157492460,0.85488728,109660.0,109650.0,0.00104]
[1756157492689,4.9388709,109660.0,109650.0,0.00104]
[1756157493331,4.9388309,109660.0,109650.0,0.00104]
[1756157493579,4.93897445,109660.0,109650.0,0.00104]
[1756157493782,4.77409445,109660.0,109650.0,0.00104]
[1756157493993,5.0258441,109660.0,109650.0,0.00104]
[1756157494194,4.8609641,109660.0,109650.0,0.00104]
[1756157494612,5.0258441,109660.0,109650.0,0.00104]
[1756157494823,4.8609641,109660.0,109650.0,0.00104]
[1756157495026,5.0258441,109660.0,109650.0,0.00104]
[1756157495440,5.0258841,109660.0,109650.0,0.00104]
[1756157495651,5.0278841,109660.0,109650.0,0.00104]
[1756157495857,5.04216267,109660.0,109650.0,0.00104]
[1756157496313,4.95020302,109660.0,109650.0,0.00616]
[1756157496530,4.95529302,109660.0,109650.0,0.00104]
[1756157497609,4.95529302,109660.0,109650.0,0.00204]
[1756157498065,4.78837302,109660.0,109650.0,0.00204]
[1756157498256,4.78837302,109660.0,109650.0,0.00104]
[1756157498471,4.87524267,109660.0,109650.0,0.00104]
[1756157498881,4.87724267,109660.0,109650.0,0.00104]
[1756157499109,5.03910267,109660.0,109650.0,0.00104]
[1756157499328,4.87418267,109660.0,109650.0,0.00104]
[1756157499531,5.06960667,109660.0,109650.0,0.00104]
[1756157501211,4.89959667,109660.0,109650.0,0.00303]
[1756157501488,5.06451667,109660.0,109650.0,0.00616]
[1756157501692,5.06960667,109660.0,109650.0,0.00104]
[1756157502333,5.06760667,109660.0,109650.0,0.00104]
[1756157502763,4.90268667,109660.0,109650.0,0.00104]
[1756157502989,4.97564702,109660.0,109650.0,0.00616]
[1756157503206,4.97764702,109660.0,109650.0,0.00616]
[1756157503646,4.96539845,109660.0,109650.0,0.00403]
[1756157503889,4.96539845,109660.0,109650.0,0.00204]
[1756157504103,5.0522681,109660.0,109650.0,0.00303]
[1756157504508,5.0502381,109660.0,109650.0,0.00303]
[1756157504727,5.0502381,109660.0,109650.0,0.00616]
[1756157505087,5.0502381,109660.0,109650.0,0.00303]
[1756157505287,5.0553281,109660.0,109650.0,0.00104]
[1756157506577,5.06960751,109660.0,109650.0,0.00104]
[1756157506790,5.06956751,109660.0,109650.0,0.00104]
[1756157507006,0.18239854,109650.0,109640.0,1e-08]
[1756157507207,5.02265719,109650.0,109640.0,1e-08]
[1756157507412,5.02571719,109650.0,109640.0,1e-08]
[1756157508828,5.02571719,109650.0,109630.0,1e-08]
[1756157508829,0.18241517,109640.0,109630.0,1e-08]
[1756157509129,4.93886417,109640.0,109630.0,1e-08]
[1756157509346,4.93886417,109640.0,109620.0,0.02990114]
[1756157509347,0.18243181,109630.0,109620.0,1e-08]
[1756157509551,0.68244845,109620.0,109610.0,1e-08]
[1756157509674,0.6824651,109610.0,109600.0,1e-08]
[1756157509889,4.9389141,109610.0,109600.0,1e-08]
[1756157510093,5.02578375,109610.0,109600.0,1e-08]
[1756157510304,5.04263737,109610.0,109600.0,1e-08]
[1756157510707,5.03957737,109610.0,109600.0,0.00199001]
[1756157510911,5.05706733,109610.0,109600.0,1e-08]
[1756157511277,5.07551635,109610.0,109600.0,1e-08]
[1756157511507,0.18248175,109600.0,109590.0,1e-08]
[1756157511727,5.11285402,109600.0,109590.0,1e-08]
[1756157511912,4.94797402,109600.0,109590.0,1e-08]
[1756157512116,5.11285402,109600.0,109590.0,1e-08]
[1756157512332,4.94797402,109600.0,109590.0,1e-08]
[1756157512553,5.10979402,109600.0,109590.0,0.00199001]
[1756157512778,5.02089437,109600.0,109590.0,0.00512001]
[1756157512986,5.02598437,109600.0,109590.0,1e-08]
[1756157513185,5.02292437,109600.0,109590.0,1e-08]
[1756157513758,5.02392437,109600.0,109590.0,0.00200001]
[1756157514004,4.94388402,109600.0,109590.0,0.00599001]
[1756157514205,4.85701437,109600.0,109590.0,0.00912001]
[1756157514403,5.02189437,109600.0,109590.0,0.00912001]
[1756157514613,4.85701437,109600.0,109590.0,0.00912001]
[1756157514812,5.02556492,109600.0,109590.0,0.00912001]
[1756157515039,5.02759492,109600.0,109590.0,0.00400001]
[1756157515273,5.11446457,109600.0,109590.0,0.00400001]
[1756157515604,5.13172139,109600.0,109590.0,0.00400001]
[1756157515807,5.13288335,109600.0,109590.0,1e-08]
[1756157516523,5.25033237,109600.0,109590.0,1e-08]
[1756157516850,5.08545237,109600.0,109590.0,1e-08]
[1756157517058,5.15037237,109600.0,109590.0,1e-08]
[1756157517258,0.18251505,109580.0,109570.0,0.00016513]
[1756157517483,4.98942004,109580.0,109570.0,0.00016513]
[1756157517686,4.98942004,109580.0,109570.0,0.00232513]
[1756157517862,4.98942004,109580.0,109570.0,0.00016513]
[1756157518065,4.82489575,109580.0,109570.0,0.00016513]
[1756157518344,5.00668078,109580.0,109570.0,0.00016513]
[1756157518509,5.00768078,109580.0,109570.0,0.00316513]
[1756157518713,0.18253171,109570.0,109560.0,0.43097446]
[1756157518912,5.04277539,109570.0,109560.0,0.43097446]
[1756157519673,5.0799793,109570.0,109560.0,0.00100069]
[1756157519907,0.18254837,109560.0,109550.0,0.05037033]
[1756157520074,4.9529524,109560.0,109550.0,0.05037033]
[1756157520312,4.9529524,109560.0,109550.0,0.05253033]
[1756157520521,5.03768205,109560.0,109550.0,0.05563033]
[1756157520858,5.05197303,109560.0,109550.0,0.05253033]
[1756157521068,4.96510338,109560.0,109550.0,0.05563033]
[1756157521276,4.96610338,109560.0,109550.0,0.05863033]
[1756157521520,4.80118338,109560.0,109550.0,0.05553033]
[1756157521731,4.96610338,109560.0,109550.0,0.05863033]
[1756157521941,5.01605798,109560.0,109550.0,0.05863033]
[1756157522151,5.01705798,109560.0,109550.0,0.06063033]
[1756157522356,4.85213798,109560.0,109550.0,0.06063033]
[1756157522570,5.002767,109560.0,109550.0,0.06063033]
[1756157523007,4.837847,109560.0,109550.0,0.06063033]
[1756157523238,5.09177665,109560.0,109550.0,0.05753033]
[1756157523463,5.08963665,109560.0,109550.0,0.06063033]
[1756157523658,4.92471665,109560.0,109550.0,0.06063033]
[1756157523871,4.837847,109560.0,109550.0,0.24319536]
[1756157524127,0.03831383,109560.0,109550.0,0.24319536]
[1756157524331,0.03831383,109560.0,109550.0,0.26064438]
[1756157524548,0.03156383,109560.0,109550.0,0.24319536]
[1756157524749,0.2141122,109560.0,109550.0,0.06063033]
[1756157524964,4.61804283,109560.0,109550.0,0.24319536]
[1756157525168,0.1946634,109560.0,109550.0,0.05753033]
[1756157525373,0.03057351,109560.0,109550.0,0.23709536]
[1756157525590,0.01011503,109560.0,109550.0,0.25254438]
[1756157525792,0.01111503,109560.0,109550.0,0.25854438]
[1756157526000,0.025403,109560.0,109550.0,0.25854438]
[1756157526202,0.024403,109560.0,109550.0,0.25254438]
[1756157526620,0.025403,109560.0,109550.0,0.24009536]
[1756157526824,0.69883634,109560.0,109550.0,0.40797536]
[1756157527033,0.01628797,109560.0,109550.0,0.40797536]
[1756157527238,0.01528797,109560.0,109550.0,0.42342438]
[1756157527576,0.01628797,109560.0,109550.0,0.42742438]
[1756157527781,0.19783634,109560.0,109550.0,0.05653033]
[1756157528001,4.80377398,109560.0,109550.0,0.40489536]
[1756157528207,0.03474661,109560.0,109550.0,0.37206412]
[1756157528546,0.03734725,109570.0,109560.0,0.19899739]
[1756157528697,0.03734725,109570.0,109560.0,0.36487739]
[1756157529533,0.03734725,109570.0,109560.0,0.36387739]
[1756157529733,0.03734725,109570.0,109560.0,0.19799739]
[1756157529933,0.03734725,109570.0,109560.0,0.36399739]
[1756157530134,0.00014334,109570.0,109560.0,0.46299739]
[1756157530341,0.00014334,109570.0,109560.0,0.36311739]
[1756157530564,0.00014334,109570.0,109560.0,0.61311739]
[1756157530731,0.00014334,109570.0,109560.0,0.46311739]
[1756157530932,0.00014334,109570.0,109560.0,0.20099739]
[1756157531134,0.00214334,109570.0,109560.0,0.20299739]
[1756157531334,0.00214334,109570.0,109560.0,0.36915739]
[1756157531612,0.03668192,109570.0,109560.0,0.36315739]
[1756157531864,0.03768192,109570.0,109560.0,0.36915739]
[1756157532062,0.00014334,109570.0,109560.0,0.36315739]
[1756157532279,0.00114334,109570.0,109560.0,0.36615739]
[1756157532507,0.00114334,109570.0,109560.0,0.46615739]
[1756157532715,0.00114334,109570.0,109560.0,0.61615739]
[1756157532920,0.00114334,109570.0,109560.0,0.70304214]
[1756157533124,1e-08,109570.0,109560.0,0.70304214]
[1756157533533,0.00100001,109570.0,109560.0,1.36274482]
[1756157533742,1e-08,109570.0,109560.0,1.36274482]
[1756157533961,1e-08,109570.0,109560.0,2.4824475]
[1756157534168,0.07253275,109620.0,109610.0,0.19991412]
[1756157534381,0.11686329,109620.0,109610.0,0.33165729]
[1756157534588,0.00014419,109620.0,109610.0,0.33065729]
[1756157534793,0.00014419,109620.0,109610.0,0.32965729]
[1756157534999,0.00014419,109620.0,109610.0,0.47965729]
[1756157535413,0.00114419,109620.0,109610.0,0.48165729]
[1756157535839,0.00014419,109620.0,109610.0,0.47965729]
[1756157536040,0.00014419,109620.0,109610.0,0.48365729]
[1756157536251,0.00114419,109620.0,109610.0,0.48365729]
[1756157536483,0.01794157,109620.0,109610.0,0.48365729]
[1756157536729,0.01794166,109620.0,109610.0,0.48365729]
[1756157537436,0.01794166,109620.0,109610.0,0.31721729]
[1756157537635,0.01794166,109620.0,109610.0,0.48413729]
[1756157538060,0.01894166,109620.0,109610.0,0.17121729]
[1756157538283,0.02524556,109620.0,109610.0,0.17121729]
[1756157538500,0.04466502,109620.0,109610.0,0.99279997]
[1756157538734,0.03836158,109620.0,109610.0,1.14279997]
[1756157538948,0.01894166,109620.0,109610.0,0.99279997]
[1756157539178,0.03837889,109620.0,109610.0,0.58809729]
[1756157539634,0.02158142,109620.0,109610.0,0.58809729]
[1756157539842,0.02158142,109620.0,109610.0,1.32968472]
[1756157540076,0.00214419,109620.0,109610.0,1.32968472]
[1756157540300,0.00214419,109620.0,109610.0,0.67498204]
[1756157540512,0.00214419,109620.0,109610.0,0.43809729]
[1756157540725,0.00214419,109620.0,109610.0,0.33953729]
[1756157540938,0.00214419,109620.0,109610.0,0.48953729]
[1756157541363,0.00214419,109620.0,109610.0,0.17121729]
[1756157541571,0.33376059,109640.0,109620.0,0.19988734]
[1756157541572,0.07253275,109630.0,109620.0,0.19988734]
[1756157541816,0.10043461,109630.0,109620.0,0.36896699]
[1756157542210,0.01945316,109630.0,109620.0,0.37112699]
[1756157542445,0.24429196,109650.0,109640.0,0.18241517]
[1756157542446,0.21997521,109650.0,109640.0,0.18241517]
[1756157542663,4.62619434,109650.0,109640.0,0.35101517]
[1756157542860,4.80859288,109650.0,109640.0,0.35101517]
[1756157543292,4.62619434,109650.0,109640.0,0.35101517]
[1756157543500,4.80859288,109650.0,109640.0,0.35101517]
[1756157543730,4.81156288,109650.0,109640.0,0.35101517]
[1756157543921,4.81156288,109650.0,109620.0,0.21148941]
[1756157544133,4.77741955,109640.0,109630.0,0.16844]
[1756157544331,0.18243181,109630.0,109620.0,0.1829281]
[1756157544546,4.591589,109630.0,109620.0,0.3514481]
[1756157544760,0.18754181,109630.0,109620.0,0.3514481]
[1756157544988,0.00511,109630.0,109620.0,0.3514481]
[1756157545188,0.50214,109630.0,109620.0,0.3514481]
[1756157545390,0.18538521,109640.0,109620.0,0.37094712]
[1756157545609,0.18547521,109640.0,109630.0,0.18243181]
[1756157545824,0.18762521,109640.0,109630.0,0.18243181]
[1756157546030,0.00521,109640.0,109630.0,0.18243181]
[1756157546268,0.50521,109640.0,109630.0,0.18243181]
[1756157546465,5.091689,109640.0,109630.0,0.18243181]
[1756157546688,0.00521,109640.0,109630.0,0.18243181]
[1756157546985,0.50521,109640.0,109630.0,0.18143181]
[1756157547183,5.091689,109640.0,109630.0,0.18143181]
[1756157547386,0.21997388,109650.0,109640.0,0.18241517]
[1756157547600,4.62926434,109650.0,109640.0,0.34993517]
[1756157547810,0.03757534,109650.0,109640.0,0.35198517]
[1756157548015,0.5,109660.0,109650.0,0.18239854]
[1756157548228,4.60596549,109660.0,109650.0,0.18239854]
[1756157548653,4.78834739,109660.0,109650.0,0.1684]
[1756157549076,4.87397636,109660.0,109650.0,0.1664]
[1756157549291,0.18239854,109650.0,109630.0,0.18143181]
[1756157549507,4.76887754,109650.0,109640.0,0.35073517]
[1756157549709,0.18454854,109650.0,109640.0,0.35173517]
[1756157549910,0.18454854,109650.0,109640.0,0.16932]
[1756157550121,0.22444164,109650.0,109640.0,0.16832]
[1756157550330,0.22444164,109650.0,109640.0,0.35073517]
[1756157550526,0.0420431,109650.0,109640.0,0.35073517]
[1756157550819,0.5420431,109650.0,109640.0,0.35073517]
[1756157551022,5.1285221,109650.0,109640.0,0.35073517]
[1756157551302,0.0420431,109650.0,109640.0,0.35273517]
[1756157551508,0.72444164,109650.0,109640.0,0.35273517]
[1756157551710,4.81092064,109650.0,109640.0,0.35273517]
[1756157551921,0.0368331,109650.0,109640.0,0.35478517]
[1756157552071,0.5368331,109650.0,109640.0,0.35578517]
[1756157552295,5.086479,109650.0,109640.0,0.35578517]
[1756157552469,0.0367288,109650.0,109640.0,0.37323419]
[1756157552667,0.00215,109650.0,109640.0,0.37118419]
[1756157552880,0.18544234,109660.0,109650.0,0.18239854]
[1756157553121,0.18759234,109660.0,109650.0,0.18239854]
[1756157553323,0.04176058,109660.0,109650.0,0.18239854]
[1756157553621,0.54176058,109660.0,109650.0,0.18239854]
[1756157553846,5.12823958,109660.0,109650.0,0.18239854]
[1756157554046,0.04176058,109660.0,109650.0,0.18239854]
[1756157554256,0.72414248,109660.0,109650.0,0.18339854]
[1756157554457,4.81062148,109660.0,109650.0,0.17044]
[1756157554677,0.31101213,109660.0,109650.0,0.35283854]
[1756157554872,0.22414248,109660.0,109650.0,0.17044]
[1756157555074,0.22414248,109660.0,109650.0,0.35283854]
[1756157555931,0.23841833,109660.0,109650.0,0.35283854]
[1756157558100,0.05297643,109660.0,109650.0,0.35283854]
[1756157558310,0.55082643,109660.0,109650.0,0.35488854]
[1756157558513,5.13730543,109660.0,109650.0,0.35488854]
[1756157558715,0.05082643,109660.0,109650.0,0.37233756]
[1756157558856,0.05082643,109660.0,109650.0,0.37530756]
[1756157559066,0.05082643,109660.0,109650.0,0.37233756]
[1756157559791,0.03655058,109660.0,109650.0,0.37430756]
[1756157559990,0.5,109670.0,109650.0,0.37430756]
[1756157559991,0.01427408,109680.0,109650.0,0.38030756]
[1756157560201,0.05141872,109680.0,109670.0,0.19981429]
[1756157560392,0.05662872,109680.0,109670.0,0.36877429]
[1756157560596,0.01948408,109680.0,109670.0,0.36877429]
[1756157561363,0.01962827,109680.0,109670.0,0.36877429]
[1756157561560,0.01962827,109680.0,109670.0,0.37077429]
[1756157562427,0.04327257,109680.0,109670.0,0.37077429]
[1756157562626,0.03806257,109680.0,109670.0,0.37282429]
[1756157562835,0.03806257,109680.0,109670.0,0.37579429]
[1756157563039,0.00014419,109680.0,109670.0,0.37579429]
[1756157563460,0.00014419,109680.0,109670.0,0.37679429]
[1756157563715,1e-08,109680.0,109670.0,1.11538172]
[1756157563854,0.0004,109730.0,109720.0,0.19973119]
[1756157563855,0.01466949,109730.0,109720.0,0.19973119]
[1756157564079,0.04436796,109730.0,109720.0,0.36846119]
[1756157564276,0.00014411,109730.0,109720.0,0.37143119]
[1756157564461,0.00014411,109730.0,109720.0,0.20275119]
[1756157564670,0.00014411,109730.0,109720.0,0.37143119]
[1756157564892,0.00014411,109730.0,109720.0,0.47143119]
[1756157565535,0.0367528,109760.0,109750.0,0.19968136]
[1756157565750,0.0367528,109760.0,109750.0,0.44053136]
[1756157565751,0.00632864,109760.0,109750.0,0.44053136]
[1756157565985,0.03785809,109770.0,109760.0,0.18221574]
[1756157566180,0.0343277,109790.0,109770.0,0.19964816]
[1756157566398,0.0343277,109790.0,109780.0,0.35074254]
[1756157566574,4.4907227,109790.0,109780.0,0.35074254]
[1756157567420,4.49048346,109790.0,109780.0,0.35074254]
[1756157567805,4.52785617,109790.0,109780.0,0.36819156]
[1756157568019,0.07055117,109790.0,109780.0,0.36819156]
[1756157568225,0.56840117,109790.0,109780.0,0.37024156]
[1756157568382,4.52264617,109790.0,109780.0,0.37024156]
[1756157568577,0.06840117,109790.0,109780.0,0.37024156]
[1756157568896,0.03102846,109790.0,109780.0,0.20465156]
[1756157569098,0.03102846,109790.0,109780.0,0.37020156]
[1756157569613,0.03102846,109790.0,109780.0,0.20168156]
[1756157569845,0.03102846,109790.0,109780.0,0.37120156]
[1756157570049,0.03102846,109790.0,109780.0,0.37517156]
[1756157570250,0.03102846,109790.0,109780.0,0.37417156]
[1756157570448,0.03102846,109790.0,109780.0,0.37317156]
[1756157570672,0.03102846,109790.0,109780.0,0.20865156]
[1756157570803,0.03102846,109790.0,109780.0,0.37608156]
[1756157571630,0.06847995,109790.0,109780.0,0.37905156]
[1756157572276,0.06847995,109790.0,109780.0,0.21065156]
[1756157572444,0.06847995,109790.0,109780.0,0.37905156]
[1756157573106,0.06847995,109790.0,109780.0,0.37604156]
[1756157573393,0.07062995,109790.0,109780.0,0.37604156]
[1756157573602,0.07368995,109790.0,109780.0,0.18818254]
[1756157573805,0.07368995,109790.0,109780.0,0.35646254]
[1756157574218,0.07368995,109790.0,109780.0,0.37391156]
[1756157574474,0.06847995,109790.0,109780.0,0.37196156]
[1756157574710,0.06847995,109790.0,109780.0,0.37204156]
[1756157574937,0.07062995,109790.0,109780.0,0.37299156]
[1756157575154,0.07062995,109790.0,109780.0,0.20463156]
[1756157575388,0.07062995,109790.0,109780.0,0.37311156]
[1756157575849,0.2559859,109790.0,109780.0,0.02244902]
[1756157576096,4.7102309,109790.0,109780.0,0.003]
[1756157576320,4.7376359,109790.0,109780.0,0.003]
[1756157576549,0.10122495,109790.0,109780.0,0.003]
[1756157576773,0.07381995,109790.0,109780.0,0.37099156]
[1756157576994,0.06847995,109790.0,109780.0,0.37299156]
[1756157577223,0.56847995,109790.0,109780.0,0.37202156]
[1756157577513,5.02585495,109790.0,109780.0,0.36799156]
[1756157577748,0.07060995,109790.0,109780.0,0.36899156]
[1756157578223,0.07379995,109790.0,109780.0,0.37083156]
[1756157578451,0.12572537,109790.0,109780.0,0.37083156]
[1756157578930,0.62253537,109790.0,109780.0,0.37083156]
[1756157579151,0.12572537,109790.0,109780.0,0.37083156]
[1756157579376,0.12572537,109790.0,109780.0,0.36783156]
[1756157579600,0.12253537,109790.0,109780.0,0.37083156]
[1756157579835,0.05061001,109790.0,109780.0,0.37583156]
[1756157580074,0.05061001,109790.0,109780.0,0.37286156]
[1756157580307,0.05061001,109790.0,109780.0,0.37583156]
[1756157580557,0.05061001,109790.0,109780.0,1.20306699]
[1756157580803,0.03234387,109810.0,109800.0,0.19959838]
[1756157581041,0.08085967,109820.0,109810.0,0.19958179]
[1756157581287,0.08453015,109820.0,109810.0,0.19958179]
[1756157581520,0.03814435,109820.0,109810.0,0.19958179]
[1756157581762,0.68213277,109810.0,109790.0,0.25223665]
[1756157582004,0.21475121,109810.0,109800.0,0.35054936]
[1756157582232,0.18216595,109790.0,109780.0,0.001]
[1756157582462,0.18429595,109790.0,109780.0,0.16876]
[1756157582690,0.18429595,109790.0,109780.0,0.17076]
[1756157582929,0.23315465,109790.0,109780.0,0.17076]
[1756157583172,4.72001809,109790.0,109780.0,0.17112]
[1756157583396,4.72001809,109790.0,109780.0,0.16912]
[1756157583631,4.67434939,109790.0,109780.0,0.17412]
[1756157583871,4.68067208,109790.0,109780.0,0.17012]
[1756157584095,4.68167208,109790.0,109780.0,0.16912]